fUSD/lending_fUSD_20240720
["ID","MTS","AMOUNT","RATE_DAILY","PERIOD"]
[332703047,1721454699976,-663.51721743,0.00034246,14]
[332703048,1721454699985,-618.24,0.00034246,14]
[332703049,1721454699995,-75.75364786,0.00034246,14]
[332703050,1721454700007,-427.34635214,0.00034246,14]
[332703051,1721454700015,-1012.39,0.00034246,14]
[332703052,1721454700025,-404.28738638,0.00034246,14]
[332703053,1721454700036,-95.71261362,0.00034246,14]
[332703054,1721454700046,-334.28738638,0.00034246,14]
[332703055,1721454700056,-344.333694,0.00034246,14]
[332703056,1721454700070,-584.86891962,0.00034246,14]
[332703057,1721454700079,-419.97608005,0.00034246,14]
[332703058,1721454700090,-331.31391995,0.00034246,14]
[332703059,1721454700099,-408.64808005,0.000343,12]
[332703060,1721454700113,-1204.12858807,0.000343,12]
[332703061,1721454700124,-387.22333188,0.000343,12]
[332703062,1721454700133,-199.0,0.000343,23]
[332703063,1721454700143,-449.93825202,0.00034357,10]
[332703064,1721454700152,-413.34305062,0.000345,19]
[332703065,1721454700163,-78.65694938,0.000345,19]
[332703066,1721454700172,-492.0,0.000345,19]
[332703067,1721454700181,-781.13096057,0.000345,14]
[332703068,1721454700191,-1725.73903943,0.000345,14]
[332703069,1721454700201,-158.3,0.000345,120]
[332703070,1721454700211,-778.73721428,0.00034519,2]
[332703071,1721454700220,-310.72119811,0.0003452,4]
[332703072,1721454700230,-500.0,0.0003452,14]
[332703073,1721454700239,-500.0,0.0003452,14]
[332703074,1721454700248,-500.0,0.0003452,14]
[332703075,1721454700258,-500.0,0.0003452,14]
[332703076,1721454700268,-500.0,0.0003452,14]
[332703077,1721454700279,-500.0,0.0003452,14]
[332703078,1721454700290,-540.72,0.0003452,14]
[332703079,1721454700300,-500.0,0.0003452,14]
[332703080,1721454700310,-843.22,0.0003452,14]
[332703081,1721454700322,-590.67,0.0003452,14]
[332703082,1721454700334,-78.74878197,0.0003452,14]
[332703083,1721454700360,-502.48121803,0.0003452,14]
[332703084,1721454700370,-356.50957901,0.0003452,14]
[332703085,1721454700382,-157.61042099,0.0003452,14]
[332703086,1721454700393,-420.02957901,0.0003452,14]
[332703087,1721454700407,-79.97042099,0.0003452,14]
[332703088,1721454700417,-379.61944005,0.0003452,14]
[332703089,1721454700435,-258.23055995,0.0003452,14]
[332703090,1721454700444,-767.04,0.0003452,14]
[332703091,1721454700454,-500.0,0.0003452,14]
[332703092,1721454700463,-500.0,0.0003452,14]
[332703093,1721454700472,-389.41621033,0.0003452,14]
[332703094,1721454700485,-110.58378967,0.0003452,14]
[332703095,1721454700494,-500.0,0.0003452,14]
[332703096,1721454700503,-562.63374562,0.0003452,14]
[332703097,1721454700512,-500.0,0.0003452,14]
[332703098,1721454700521,-607.5,0.0003452,14]
[332703099,1721454700532,-694.38,0.0003452,14]
[332703100,1721454700541,-500.0,0.0003452,14]
[332703101,1721454700550,-500.0,0.0003452,14]
[332703102,1721454700559,-500.0,0.0003452,14]
[332703103,1721454700569,-500.0,0.0003452,14]
[332703104,1721454700578,-22.90246471,0.0003452,14]
[332703105,1721454700590,-607.97134023,0.0003452,14]
[332703106,1721454700603,-6.55597504,0.0003452,14]
[332703107,1721454700614,-500.0,0.0003452,14]
[332703108,1721454700624,-500.0,0.0003452,14]
[332703109,1721454700634,-500.0,0.0003452,14]
[332703110,1721454700643,-500.0,0.0003452,14]
[332703111,1721454700653,-500.0,0.0003452,14]
[332703112,1721454700663,-500.0,0.0003452,14]
[332703113,1721454700673,-530.52,0.0003452,14]
[332703114,1721454700683,-500.0,0.0003452,14]
[332703115,1721454700692,-500.0,0.0003452,14]
[332703116,1721454700701,-510.18708336,0.0003452,14]
[332703117,1721454700709,-503.81,0.0003452,14]
[332703118,1721454700718,-536.19,0.0003452,14]
[332703119,1721454700728,-500.0,0.0003452,14]
[332703120,1721454700737,-500.0,0.0003452,14]
[332703121,1721454700746,-500.0,0.0003452,14]
[332703122,1721454700755,-500.0,0.0003452,14]
[332703123,1721454700765,-500.0,0.0003452,14]
[332703124,1721454700775,-500.0,0.0003452,14]
[332703125,1721454700785,-500.0,0.0003452,14]
[332703126,1721454700796,-602.73,0.0003452,14]
[332703127,1721454700807,-500.0,0.0003452,14]
[332703128,1721454700819,-694.11,0.0003452,14]
[332703129,1721454700829,-976.13,0.0003452,14]
[332703130,1721454700838,-586.56,0.0003452,14]
[332703131,1721454700849,-424.02988112,0.0003452,14]
[332703132,1721454700861,-75.97011888,0.0003452,14]
[332703133,1721454700870,-956.44,0.0003452,14]
[332703134,1721454700879,-500.0,0.0003452,14]
[332703135,1721454700889,-546.24,0.0003452,14]
[332703136,1721454700898,-500.0,0.0003452,14]
[332703137,1721454700906,-597.63,0.0003452,14]
[332703138,1721454700915,-500.0,0.0003452,14]
[332703139,1721454700924,-578.97,0.0003452,14]
[332703140,1721454700933,-500.0,0.0003452,14]
[332703141,1721454700942,-500.0,0.0003452,14]
[332703142,1721454700951,-500.0,0.0003452,14]
[332703143,1721454700961,-500.0,0.0003452,14]
[332703144,1721454700971,-500.0,0.0003452,14]
[332703145,1721454700980,-500.0,0.0003452,14]
[332703146,1721454700990,-1139.65,0.0003452,14]
[332703147,1721454700999,-500.0,0.0003452,14]
[332703148,1721454701009,-373.93560983,0.0003452,14]
[332703149,1721454701021,-220.87439017,0.0003452,14]
[332703150,1721454701029,-533.4,0.0003452,14]
[332703151,1721454701039,-988.92798986,0.0003452,14]
[332703152,1721454701052,-646.10201014,0.0003452,14]
[332703153,1721454701061,-246.44122902,0.0003452,14]
[332703154,1721454701073,-253.55877098,0.0003452,14]
[332703155,1721454701083,-253.93342247,0.0003452,14]
[332703156,1721454701094,-246.06657753,0.0003452,14]
[332703157,1721454701104,-874.14,0.0003452,14]
[332703158,1721454701114,-500.0,0.0003452,14]
[332703159,1721454701123,-500.0,0.0003452,14]
[332703160,1721454701133,-901.37,0.0003452,14]
[332703161,1721454701142,-829.22,0.0003452,14]
[332703162,1721454701152,-500.0,0.0003452,14]
[332703163,1721454701162,-215.63525138,0.0003452,14]
[332703164,1721454701178,-1908.53,0.00032876,14]
[332703165,1721454701188,-284.36474862,0.0003452,14]
[332703166,1721454701198,-1308.18,0.0003452,14]
[332703167,1721454701207,-843.1,0.0003452,14]
[332703168,1721454701218,-683.53,0.0003452,14]
[332703169,1721454701228,-500.0,0.0003452,14]
[332703170,1721454701238,-876.85,0.0003452,14]
[332703171,1721454701247,-935.95,0.0003452,14]
[332703172,1721454701257,-745.54,0.0003452,14]
[332703173,1721454701266,-500.0,0.0003452,14]
[332703174,1721454701276,-500.0,0.0003452,14]
[332703175,1721454701285,-636.69,0.0003452,14]
[332703176,1721454701295,-500.0,0.0003452,14]
[332703177,1721454701304,-769.28,0.0003452,14]
[332703178,1721454701313,-1079.35,0.0003452,14]
[332703179,1721454701326,-710.01,0.0003452,14]
[332703180,1721454701335,-500.0,0.0003452,14]
[332703181,1721454701345,-500.0,0.0003452,14]
[332703182,1721454701355,-1222.45,0.0003452,14]
[332703183,1721454701366,-1172.59,0.0003452,14]
[332703184,1721454701375,-579.49,0.0003452,14]
[332703185,1721454701392,-1056.79,0.0003452,14]
[332703186,1721454701401,-807.94,0.0003452,14]
[332703187,1721454701412,-500.0,0.0003452,14]
[332703188,1721454701422,-1358.25,0.0003452,14]
[332703189,1721454701432,-500.0,0.0003452,14]
[332703190,1721454701442,-1130.8,0.0003452,14]
[332703191,1721454701453,-870.92,0.0003452,14]
[332703192,1721454701463,-500.0,0.0003452,14]
[332703193,1721454701472,-500.0,0.0003452,14]
[332703194,1721454701481,-500.0,0.0003452,14]
[332703195,1721454701493,-500.0,0.0003452,14]
[332703196,1721454701503,-500.0,0.0003452,14]
[332703197,1721454701514,-969.05,0.0003452,14]
[332703198,1721454701524,-500.0,0.0003452,14]
[332703199,1721454701534,-761.91,0.0003452,14]
[332703200,1721454701544,-642.69,0.0003452,14]
[332703201,1721454701554,-893.09,0.0003452,14]
[332703202,1721454701564,-597.63,0.0003452,14]
[332703203,1721454701573,-598.13,0.0003452,14]
[332703204,1721454701583,-972.69,0.0003452,14]
[332703205,1721454701592,-1697.94,0.0003452,14]
[332703206,1721454701602,-500.0,0.0003452,14]
[332703207,1721454701612,-500.0,0.0003452,14]
[332703208,1721454701621,-500.0,0.0003452,14]
[332703209,1721454701631,-500.0,0.0003452,14]
[332703210,1721454701640,-1191.04,0.0003452,14]
[332703211,1721454701651,-500.0,0.0003452,14]
[332703212,1721454701663,-500.0,0.0003452,14]
[332703213,1721454701674,-502.32,0.0003452,14]
[332703214,1721454701684,-500.0,0.0003452,14]
[332703215,1721454701694,-500.0,0.0003452,14]
[332703216,1721454701703,-500.0,0.0003452,14]
[332703217,1721454701713,-500.0,0.0003452,14]
[332703218,1721454701723,-150.51850651,0.0003452,14]
[332703244,1721455832105,-150.0,0.00015,2]
[332703245,1721455832114,-188.67033941,0.00015899,2]
[332703246,1721455832123,-300.0,0.00015998,2]
[332703247,1721455832132,-779.86932699,0.00015999,2]
[332703248,1721455832159,-250.0,0.00015999,2]
[332703251,1721455837747,-3371.18811094,0.00015999,2]
[332703252,1721455837759,-5978.58703108,0.00015999,2]
[332703253,1721455837769,-1275.0,0.000163,2]
[332703254,1721455837779,-993.88480396,0.000163,2]
[332703255,1721455837788,-13029.09406489,0.000163,2]
[332703256,1721455837798,-3953.53743651,0.00016694,2]
[332703257,1721455837807,-200.0,0.00017,2]
[332703258,1721455837818,-420.0,0.00017491,2]
[332703259,1721455837827,-1543.45571401,0.00018081,2]
[332703260,1721455837843,-464.71367182,0.00018081,2]
[332703261,1721455837855,-150.99,0.00018845,2]
[332703262,1721455837865,-250.0,0.00019,2]
[332703263,1721455837874,-587.0,0.00019124,2]
[332703264,1721455837885,-155.0,0.00019319,2]
[332703265,1721455837895,-155.0,0.000199,2]
[332703266,1721455837904,-327.52955077,0.0002,2]
[332703267,1721455837914,-188.36783208,0.0002,2]
[332703268,1721455837926,-2020.63019964,0.00020222,2]
[332703269,1721455837938,-823.0,0.00020909,2]
[332703270,1721455837948,-57.55328557,0.00021,2]
[332703271,1721455837960,-242.44671443,0.00021,2]
[332703272,1721455837969,-717.28397371,0.0002209,2]
[332703273,1721455837979,-906.51743677,0.0002286,2]
[332703274,1721455837990,-130.48256323,0.0002286,2]
[332703275,1721455838000,-350.0,0.00023,2]
[332703276,1721455838009,-217.53,0.00024593,2]
[332703277,1721455838019,-400.0,0.00025,2]
[332703278,1721455838028,-300.0,0.00025008,2]
[332703279,1721455838037,-369.0,0.00026169,2]
[332703280,1721455838047,-606.82638,0.00026341,7]
[332703281,1721455838056,-250.0,0.00026534,2]
[332703282,1721455838066,-150.0,0.00026651,2]
[332703283,1721455838076,-202.32166912,0.0002679,2]
[332703284,1721455838096,-1121.4043503,0.0002679,2]
[332703285,1721455838105,-366.61352416,0.00026828,2]
[332703286,1721455838115,-155.0,0.00026828,2]
[332703287,1721455838124,-227.4651143,0.00026847,5]
[332703288,1721455838134,-217.53,0.00026857,2]
[332703289,1721455838143,-450.0,0.00027,2]
[332703290,1721455838152,-1500.0,0.00027338,5]
[332703291,1721455838162,-453.0,0.00027384,2]
[332703293,1721455838171,-152.10825306,0.00027745,2]
[332703295,1721455838181,-182.9,0.00027935,2]
[332703296,1721455838191,-155.0,0.00027999,2]
[332703297,1721455838201,-371.40691921,0.00028,2]
[332703298,1721455838210,-150.25,0.00028286,2]
[332703299,1721455838223,-200.0,0.00028308,2]
[332703300,1721455838232,-151.53,0.00028496,120]
[332703301,1721455838241,-558.0,0.00028655,2]
[332703302,1721455838251,-500.0,0.00029,2]
[332703303,1721455838261,-217.53,0.00029121,2]
[332703304,1721455838271,-4176.14045734,0.00029213,2]
[332703305,1721455838280,-686.0,0.00029985,2]
[332703306,1721455838290,-2989.30612041,0.0003,4]
[332703307,1721455838299,-1000.0,0.0003,20]
[332703308,1721455838308,-180.0,0.00030727,2]
[332703309,1721455838319,-1000.0,0.00031,23]
[332703310,1721455838328,-550.0,0.00031,2]
[332703311,1721455838338,-844.0,0.00031377,3]
[332703312,1721455838348,-217.53,0.00031385,2]
[332703313,1721455838357,-200.0,0.00031846,2]
[332703314,1721455838367,-400.0,0.00031939,120]
[332703315,1721455838377,-1000.0,0.00032,23]
[332703316,1721455838386,-1003.0,0.000325,22]
[332703317,1721455838395,-1000.0,0.00032776,2]
[332703318,1721455838405,-310.0244,0.00032776,2]
[332703319,1721455838415,-7500.0,0.00032776,2]
[332703320,1721455838424,-312.27726531,0.00032776,2]
[332703321,1721455838434,-200.0,0.000328,11]
[332703322,1721455838444,-1038.0,0.00032834,3]
[332703323,1721455838453,-493.03568146,0.00032865,4]
[332703324,1721455838463,-1007.86000002,0.00032866,5]
[332703325,1721455838472,-445.80572781,0.00032866,5]
[332703326,1721455838481,-341.84,0.00032866,10]
[332703327,1721455838491,-155.0,0.00032874,4]
[332703328,1721455838501,-500.84276192,0.00032876,14]
[332703329,1721455838511,-200.0,0.00032876,14]
[332703330,1721455838521,-502.33771878,0.00032876,14]
[332703331,1721455838530,-608.03015628,0.00032876,14]
[332703332,1721455838540,-500.0,0.00032876,14]
[332703333,1721455838549,-500.0,0.00032876,14]
[332703334,1721455838559,-500.0,0.00032876,14]
[332703335,1721455838568,-500.0,0.00032876,14]
[332703336,1721455838578,-610.9,0.00032876,14]
[332703337,1721455838587,-500.0,0.00032876,14]
[332703338,1721455838597,-562.21,0.00032876,14]
[332703339,1721455838606,-500.0,0.00032876,14]
[332703340,1721455838615,-500.0,0.00032876,14]
[332703341,1721455838625,-500.0,0.00032876,14]
[332703342,1721455838634,-500.0,0.00032876,14]
[332703343,1721455838644,-505.76,0.00032876,14]
[332703344,1721455838655,-500.0,0.00032876,14]
[332703345,1721455838664,-723.08,0.00032876,14]
[332703346,1721455838674,-2004.75546862,0.00032876,14]
[332703347,1721455838684,-500.0,0.00032876,14]
[332703348,1721455838694,-500.0,0.00032876,14]
[332703349,1721455838704,-500.0,0.00032876,14]
[332703350,1721455838713,-500.0,0.00032876,14]
[332703351,1721455838723,-500.0,0.00032876,14]
[332703352,1721455838733,-716.56,0.00032876,14]
[332703353,1721455838743,-500.32046481,0.00032876,14]
[332703354,1721455838752,-500.0,0.00032876,14]
[332703355,1721455838761,-562.07,0.00032876,14]
[332703356,1721455838777,-548.26,0.00032876,14]
[332703357,1721455838790,-500.0,0.00032876,14]
[332703358,1721455838800,-500.0,0.00032876,14]
[332703359,1721455838810,-245.84902318,0.00032876,14]
[332703360,1721455838821,-594.18,0.00032876,14]
[332703361,1721455838836,-530.82,0.00032876,14]
[332703362,1721455838846,-500.0,0.00032876,14]
[332703363,1721455838856,-500.65262713,0.00032876,14]
[332703364,1721455838866,-500.35484465,0.00032876,14]
[332703365,1721455838877,-618.79700533,0.00032876,14]
[332703366,1721455838888,-500.0,0.00032876,14]
[332703367,1721455838898,-607.15,0.00032876,14]
[332703368,1721455838909,-300.39188191,0.00032876,14]
[332703369,1721455838919,-500.0,0.00032876,14]
[332703370,1721455838929,-500.0,0.00032876,14]
[332703371,1721455838939,-500.0,0.00032876,14]
[332703372,1721455838948,-509.17,0.00032876,14]
[332703373,1721455838958,-500.0,0.00032876,14]
[332703374,1721455838968,-500.0,0.00032876,14]
[332703375,1721455838977,-523.52,0.00032876,14]
[332703376,1721455838987,-500.0,0.00032876,14]
[332703377,1721455838997,-500.0,0.00032876,14]
[332703378,1721455839008,-500.0,0.00032876,14]
[332703379,1721455839017,-500.0,0.00032876,14]
[332703380,1721455839027,-500.0,0.00032876,14]
[332703381,1721455839036,-500.0,0.00032876,14]
[332703382,1721455839046,-500.0,0.00032876,14]
[332703383,1721455839056,-500.0,0.00032876,14]
[332703384,1721455839066,-566.97,0.00032876,14]
[332703385,1721455839076,-500.0,0.00032876,14]
[332703386,1721455839085,-500.0,0.00032876,14]
[332703387,1721455839095,-500.0,0.00032876,14]
[332703388,1721455839104,-500.0,0.00032876,14]
[332703389,1721455839114,-519.50327183,0.00032876,14]
[332703390,1721455839124,-500.0,0.00032876,14]
[332703391,1721455839135,-500.0,0.00032876,14]
[332703392,1721455839145,-843.65,0.00032876,14]
[332703393,1721455839155,-500.0,0.00032876,14]
[332703394,1721455839164,-500.0,0.00032876,14]
[332703395,1721455839174,-1066.74,0.00032876,14]
[332703396,1721455839183,-500.0,0.00032876,14]
[332703397,1721455839193,-500.0,0.00032876,14]
[332703398,1721455839203,-500.0,0.00032876,14]
[332703399,1721455839212,-865.9,0.00032876,14]
[332703400,1721455839222,-630.78,0.00032876,14]
[332703401,1721455839232,-1076.07,0.00032876,14]
[332703402,1721455839241,-500.0,0.00032876,14]
[332703403,1721455839251,-358.5189516,0.00032876,14]
[332703404,1721455839268,-141.4810484,0.00032876,14]
[332703405,1721455839278,-500.0,0.00032876,14]
[332703406,1721455839288,-500.0,0.00032876,14]
[332703407,1721455839298,-500.0,0.00032876,14]
[332703408,1721455839308,-775.29,0.00032876,14]
[332703409,1721455839318,-969.19848555,0.00032876,14]
[332703410,1721455839335,-223.39151445,0.00032876,14]
[332703411,1721455839346,-500.0,0.00032876,14]
[332703412,1721455839356,-500.0,0.00032876,14]
[332703413,1721455839367,-764.54,0.00032876,14]
[332703414,1721455839377,-500.0,0.00032876,14]
[332703415,1721455839387,-500.0,0.00032876,14]
[332703416,1721455839398,-525.81,0.00032876,14]
[332703417,1721455839408,-500.0,0.00032876,14]
[332703418,1721455839418,-500.0,0.00032876,14]
[332703419,1721455839429,-500.0,0.00032876,14]
[332703420,1721455839439,-500.0,0.00032876,14]
[332703421,1721455839449,-1301.61,0.00032876,14]
[332703422,1721455839459,-500.0,0.00032876,14]
[332703424,1721455839883,-500.0,0.00032876,14]
[332703425,1721455839902,-500.0,0.00032876,14]
[332703426,1721455839914,-770.6,0.00032876,14]
[332703427,1721455839924,-800.98,0.00032876,14]
[332703428,1721455839934,-632.6,0.00032876,14]
[332703429,1721455839945,-500.0,0.00032876,14]
[332703430,1721455839955,-500.0,0.00032876,14]
[332703431,1721455839965,-500.0,0.00032876,14]
[332703432,1721455839975,-1253.58,0.00032876,14]
[332703433,1721455839985,-500.0,0.00032876,14]
[332703434,1721455839995,-500.0,0.00032876,14]
[332703435,1721455840005,-686.41,0.00032876,14]
[332703436,1721455840015,-1202.71,0.00032876,14]
[332703437,1721455840026,-500.0,0.00032876,14]
[332703438,1721455840036,-500.0,0.00032876,14]
[332703439,1721455840046,-500.0,0.00032876,14]
[332703440,1721455840056,-500.0,0.00032876,14]
[332703441,1721455840067,-500.0,0.00032876,14]
[332703442,1721455840078,-500.0,0.00032876,14]
[332703443,1721455840088,-500.0,0.00032876,14]
[332703444,1721455840099,-500.0,0.00032876,14]
[332703445,1721455840108,-511.85,0.00032876,14]
[332703446,1721455840118,-500.0,0.00032876,14]
[332703447,1721455840127,-500.0,0.00032876,14]
[332703448,1721455840138,-500.0,0.00032876,14]
[332703449,1721455840147,-500.0,0.00032876,14]
[332703450,1721455840157,-592.39,0.00032876,14]
[332703451,1721455840167,-633.18,0.00032876,14]
[332703452,1721455840177,-613.3,0.00032876,2]
[332703453,1721455840187,-500.0,0.00032876,14]
[332703454,1721455840197,-818.62,0.00032876,14]
[332703455,1721455840207,-500.0,0.00032876,14]
[332703456,1721455840218,-572.35,0.00032876,14]
[332703457,1721455840227,-810.6,0.00032876,14]
[332703458,1721455840237,-500.0,0.00032876,14]
[332703459,1721455840247,-500.0,0.00032876,14]
[332703460,1721455840256,-500.0,0.00032876,14]
[332703461,1721455840267,-965.1,0.00032876,14]
[332703462,1721455840277,-710.15,0.00032876,14]
[332703463,1721455840287,-500.0,0.00032876,14]
[332703464,1721455840297,-500.0,0.00032876,14]
[332703465,1721455840307,-500.0,0.00032876,14]
[332703466,1721455840317,-500.0,0.00032876,14]
[332703467,1721455840327,-500.0,0.00032876,14]
[332703468,1721455840338,-500.0,0.00032876,14]
[332703469,1721455840348,-562.49,0.00032876,14]
[332703470,1721455840357,-581.4,0.00032876,14]
[332703471,1721455840367,-500.0,0.00032876,14]
[332703472,1721455840377,-752.67,0.00032876,14]
[332703473,1721455840387,-500.0,0.00032876,14]
[332703474,1721455840397,-503.47598225,0.00032876,14]
[332703475,1721455840407,-503.34543439,0.00032876,14]
[332703476,1721455840418,-500.0,0.00032876,14]
[332703477,1721455840428,-500.0,0.00032876,14]
[332703478,1721455840438,-500.0,0.00032876,14]
[332703479,1721455840447,-685.98,0.00032876,14]
[332703480,1721455840457,-760.96,0.00032876,14]
[332703481,1721455840467,-500.0,0.00032876,14]
[332703482,1721455840478,-1914.87,0.00032876,14]
[332703483,1721455840487,-500.0,0.00032876,14]
[332703484,1721455840497,-500.0,0.00032876,14]
[332703485,1721455840507,-580.27,0.00032876,14]
[332703486,1721455840516,-500.0,0.00032876,14]
[332703487,1721455840527,-500.0,0.00032876,14]
[332703488,1721455840536,-1252.42,0.00032876,14]
[332703489,1721455840545,-500.0,0.00032876,14]
[332703490,1721455840555,-500.0,0.00032876,14]
[332703491,1721455840565,-705.29,0.00032876,14]
[332703492,1721455840575,-500.0,0.00032876,14]
[332703493,1721455840586,-501.94,0.00032876,14]
[332703494,1721455840595,-500.0,0.00032876,14]
[332703495,1721455840605,-500.0,0.00032876,14]
[332703496,1721455840614,-500.0,0.00032876,14]
[332703497,1721455840624,-500.0,0.00032876,14]
[332703498,1721455840634,-815.01,0.00032876,14]
[332703499,1721455840643,-500.0,0.00032876,14]
[332703500,1721455840653,-500.0,0.00032876,14]
[332703501,1721455840663,-500.0,0.00032876,14]
[332703502,1721455840673,-767.43,0.00032876,14]
[332703503,1721455840683,-500.0,0.00032876,14]
[332703504,1721455840692,-814.86,0.00032876,14]
[332703505,1721455840703,-500.0,0.00032876,14]
[332703506,1721455840713,-1365.11,0.00032876,14]
[332703507,1721455840723,-500.0,0.00032876,14]
[332703508,1721455840733,-500.0,0.00032876,14]
[332703509,1721455840742,-500.0,0.00032876,14]
[332703510,1721455840751,-535.5714446,0.00032876,14]
[332703511,1721455840761,-500.0,0.00032876,14]
[332703512,1721455840770,-500.0,0.00032876,14]
[332703513,1721455840779,-597.2,0.00032876,14]
[332703514,1721455840788,-500.0,0.00032876,14]
[332703515,1721455840798,-500.0,0.00032876,14]
[332703516,1721455840807,-500.0,0.00032876,14]
[332703517,1721455840816,-500.0,0.00032876,14]
[332703518,1721455840826,-500.0,0.00032876,14]
[332703519,1721455840836,-1169.06,0.00032876,14]
[332703520,1721455840848,-500.0,0.00032876,14]
[332703521,1721455840857,-500.0,0.00032876,14]
[332703522,1721455840867,-500.0,0.00032876,14]
[332703523,1721455840876,-500.0,0.00032876,14]
[332703524,1721455840887,-824.11,0.00032876,14]
[332703525,1721455840896,-806.93,0.00032876,14]
[332703526,1721455840906,-561.94,0.00032876,14]
[332703527,1721455840917,-500.0,0.00032876,14]
[332703528,1721455840926,-592.22854851,0.00032876,14]
[332703529,1721455840936,-500.0,0.00032876,14]
[332703530,1721455840945,-501.18618618,0.00032876,14]
[332703531,1721455840955,-951.36,0.00032876,14]
[332703532,1721455840965,-960.6,0.00032876,14]
[332703533,1721455840975,-500.0,0.00032876,14]
[332703534,1721455840984,-566.08,0.00032876,14]
[332703535,1721455840993,-500.0,0.00032876,14]
[332703536,1721455841003,-1260.57,0.00032876,14]
[332703537,1721455841012,-500.0,0.00032876,14]
[332703538,1721455841021,-500.0,0.00032876,14]
[332703539,1721455841032,-500.0,0.00032876,14]
[332703540,1721455841042,-523.60737758,0.00032876,14]
[332703541,1721455841054,-500.0,0.00032876,14]
[332703542,1721455841064,-743.02,0.00032876,14]
[332703543,1721455841074,-500.0,0.00032876,14]
[332703544,1721455841083,-500.0,0.00032876,14]
[332703545,1721455841093,-500.0,0.00032876,14]
[332703546,1721455841103,-500.0,0.00032876,14]
[332703547,1721455841114,-544.86,0.00032876,14]
[332703548,1721455841123,-1154.3,0.00032876,14]
[332703549,1721455841133,-500.0,0.00032876,14]
[332703550,1721455841144,-598.6,0.00032876,14]
[332703551,1721455841154,-643.93,0.00032876,14]
[332703552,1721455841164,-914.59,0.00032876,14]
[332703553,1721455841174,-509.34,0.00032876,14]
[332703554,1721455841184,-500.0,0.00032876,14]
[332703555,1721455841194,-635.32,0.00032876,14]
[332703556,1721455841204,-597.28,0.00032876,14]
[332703557,1721455841214,-537.07,0.00032876,14]
[332703558,1721455841224,-500.0,0.00032876,14]
[332703559,1721455841233,-500.0,0.00032876,14]
[332703560,1721455841243,-574.24,0.00032876,14]
[332703561,1721455841252,-726.61,0.00032876,14]
[332703562,1721455841262,-680.29,0.00032876,14]
[332703563,1721455841271,-1180.04,0.00032876,14]
[332703564,1721455841280,-636.98,0.00032876,14]
[332703565,1721455841290,-500.0,0.00032876,14]
[332703566,1721455841300,-500.0,0.00032876,14]
[332703567,1721455841309,-500.0,0.00032876,14]
[332703568,1721455841319,-500.0,0.00032876,14]
[332703569,1721455841329,-500.0,0.00032876,14]
[332703570,1721455841338,-500.0,0.00032876,14]
[332703571,1721455841348,-748.69,0.00032876,14]
[332703572,1721455841358,-500.0,0.00032876,14]
[332703573,1721455841367,-500.0,0.00032876,14]
[332703574,1721455841377,-500.0,0.00032876,14]
[332703575,1721455841387,-741.12,0.00032876,14]
[332703576,1721455841396,-500.0,0.00032876,14]